[Event "10th Iberoamericano-ch 2024"]
[Site "Linares"]
[Date "2024.09.29"]
[Round "7.1"]
[White "Avila Pavas, Santiago"]
[Black "Quesada Perez, Luis Ernesto"]
[Result "1-0"]
[ECO "C45"]
[WhiteElo "2485"]
[BlackElo "2578"]
[Annotator "RC"]
[PlyCount "51"]
[EventDate "2024.09.25"]
[EventType "swiss"]
[EventCountry "ESP"]
[SourceTitle "playchess.com"]
[Source "ChessBase"]
[SourceQuality "1"]
[TimeControl "5400+30"]

1. e4 {[%emt 0:03:29]} e5 {[%emt 0:00:09]} 2. Nf3 {[%emt 0:00:14]} Nc6 {[%emt 0:00:06]} 3. d4 {[%emt 0:00:08]} exd4 {[%emt 0:00:07]} 4. Nxd4 {[%emt 0:00:04]} Bc5 {[%emt 0:00:21]} 5. Nb3 {[%emt 0:00:08]} Bb6 {[%emt 0:00:09]} 6. Nc3 {[%emt 0:00:08]} Nge7 {[%emt 0:00:21]} 7. Bf4 {[%emt 0:00:24]} O-O {[%emt 0:01:36]} 8. Qd2 {[%emt 0:00:26]} f5 {[%emt 0:13:28]} 9. exf5 {[%emt 0:28:52]} Rxf5 {[%emt 0:03:22]} 10. Bd3 {[%emt 0:00:15]} Rf8 {[%emt 0:00:06]} 11. Bc4+ {[%emt 0:00:05]} Kh8 {[%emt 0:00:08]} 12. O-O-O {[%emt 0:01:01]} d6 {[%emt 0:04:07]} 13. Rhe1 {[%emt 0:30:40]} Bf5 {[%emt 0:06:33]} 14. f3 {[%emt 0:00:15]} Bg6 {[%emt 0:02:40]} 15. Bg5 {[%emt 0:01:51]} Bf7 {[%emt 0:00:56]} 16. Nd5 {[%emt 0:02:33]} Qd7 {[%emt 0:04:16]} 17. Bxe7 {[%emt 0:09:59]} Bxd5 {[%emt 0:00:08]} 18. Bxf8 {[%emt 0:00:04]} Bxc4 {[%emt 0:00:09]} 19. Qc3 {[%emt 0:00:05]} Rxf8 {[%emt 0:09:58]} 20. Qxc4 {[%emt 0:00:17]} a5 {[%emt 0:00:13]} 21. Nc5 {[%emt 0:02:37]} Bxc5 {[%emt 0:00:26]} 22. Qxc5 {[%emt 0:00:06]} Qf7 {[%emt 0:00:06]} 23. Qd5 {[%emt 0:00:53]} Qf4+ {[%emt 0:00:08]} 24. Kb1 {[%emt 0:00:33]} Qxh2 {[%emt 0:00:31]} 25. Qf7 {[%emt 0:00:31]} Rg8 {[%emt 0:00:17]} 26. Re8 {[%emt 0:00:08]} 1-0

[Event "10th Iberoamericano-ch 2024"]
[Site "Linares"]
[Date "2024.09.29"]
[Round "7.2"]
[White "Henriquez Villagra, Cristobal"]
[Black "Garcia Ramos, Daniel"]
[Result "0-1"]
[ECO "D02"]
[WhiteElo "2604"]
[BlackElo "2415"]
[Annotator "TA"]
[PlyCount "84"]
[EventDate "2024.09.25"]
[EventType "swiss"]
[EventCountry "ESP"]
[SourceTitle "playchess.com"]
[Source "ChessBase"]
[SourceQuality "1"]
[TimeControl "5400+30"]

{[%evp 11,84,-7,0,0,-1,0,0,7,17,20,41,40,53,54,61,71,80,66,70,81,90,90,68,35,43,26,86,36,31,31,37,0,40,44,47,38,49,15,17,23,43,-12,0,0,29,0,0,-48,-49,-46,-42,-39,-39,-69,-67,-71,-67,-219,-219,-224,-221,-901,-901,-29969,-29969,-29973,-29974,-29970,-29972,-29983,-29984,-29984,-29985,-29985,-29986]} 1. d4 {[%emt 0:03:50]} d5 {[%emt 0:00:18]} 2. Nf3 {[%emt 0:00:05]} Nf6 {[%emt 0:00:11]} 3. Bf4 {[%emt 0:00:06]} e6 {[%emt 0:00:27]} 4. e3 {[%emt 0:00:12]} Bd6 {[%emt 0:00:44]} 5. Ne5 {[%emt 0:00:06]} O-O {[%emt 0:00:46]} 6. Nd2 {[%emt 0:00:35]} c5 {[%emt 0:00:23]} 7. c3 {[%emt 0:00:06]} Qc7 {[%emt 0:05:41]} 8. Bd3 {[%emt 0:00:11]} Nc6 {[%emt 0:00:40]} 9. Ndf3 {[%emt 0:00:15] The position is equal.} Ne4 {[%emt 0:09:45]} 10. O-O {[%emt 0:02:58]} f6 {[%emt 0:09:13]} 11. Nxc6 {[%emt 0:00:54]} Bxf4 {[%emt 0:00:13]} 12. exf4 {[%emt 0:01:51]} bxc6 {[%emt 0:00:53]} 13. Qc1 {[%emt 0:00:57]} c4 {[%emt 0:20:00]} 14. Bxe4 {[%emt 0:02:58]} dxe4 {[%emt 0:00:06]} 15. Nd2 {[%emt 0:00:06][%csl LRc4,LRe4]} Qxf4 {[%emt 0:01:07][%cal Oc6c5]} 16. Re1 {[%emt 0:01:21]} (16. Nxc4 Qc7 $14) 16... Rb8 {[%emt 0:08:52]} 17. b4 {[%emt 0:18:09]} (17. Nxc4 Qxc1 18. Raxc1 (18. Rexc1 Ba6 $11) 18... Ba6 $15) 17... cxb3 $1 {[%emt 0:03:55]} 18. axb3 {[%emt 0:00:15]} (18. Rxe4 b2 19. Rxf4 bxc1=B 20. Rxc1 Rb2 $15) 18... e5 {[%emt 0:11:23]} (18... f5 $11 {keeps the balance.}) 19. Rxa7 {[%emt 0:03:41]} ({White should play} 19. Rxe4 $16 Qf5 20. b4 (20. Rxa7 Rxb3 21. Re3 Rb7 $11)) 19... Bf5 {[%emt 0:04:39]} 20. g3 {[%emt 0:19:39]} Qh6 {[%emt 0:00:38]} 21. Ra5 {[%emt 0:03:22]} (21. Nxe4 $2 Qxc1 (21... Rxb3 22. Qxh6 gxh6 23. Rc7 $16) 22. Rxc1 Bxe4 $19) 21... Bg6 {[%emt 0:02:14]} 22. dxe5 {[%emt 0:11:37]} fxe5 {[%emt 0:01:10][%cal Of8f2] ...Rxf2! would now be deadly.} 23. h4 {[%emt 0:01:35][%cal Ob3b4]} ({Much worse is} 23. Rxe5 Rxf2 24. Nf1 (24. Kxf2 $2 Qxh2+ 25. Ke3 Qxg3+ 26. Ke2 Qxe5 $19) 24... Qxc1 25. Rxc1 Re2 $15) 23... Qh5 {[%emt 0:03:18]} 24. b4 {[%emt 0:04:49]} Rbd8 {[%emt 0:00:47] Hoping for ...Qf5.} 25. Nf1 {[%emt 0:01:57]} (25. Nxe4 $2 {perishes.} Bxe4 26. Qe3 Qf5 $19) 25... Qf5 {[%emt 0:01:00]} (25... Rd3 {is more complex.} 26. Ne3 Qf3 27. Qb2 Rfd8) 26. Ra2 {[%emt 0:10:58] White is weak on the light squares} (26. Qc2 $1 $14) 26... h6 {[%emt 0:00:06]} 27. Kh2 {[%emt 0:02:39] Prevents Qh3+} Qh5 {[%emt 0:02:39]} 28. Rd2 {[%emt 0:01:08]} Rd3 {[%emt 0:01:27]} 29. Kg1 {[%emt 0:01:40]} (29. c4 $11) 29... Qf5 $1 $15 {[%emt 0:02:04]} 30. Re3 $1 {[%emt 0:01:06]} Bh5 $36 {[%emt 0:03:16][%mdl 2048] White is under pressure.} 31. Qe1 {[%emt 0:00:29]} Bf3 {[%emt 0:03:46]} 32. Kh2 {[%emt 0:02:12] Prevents Qh3+} Rd5 {[%emt 0:01:08] Black has more active pieces.} 33. Rxd5 {[%emt 0:02:26]} cxd5 {[%emt 0:00:04]} 34. Nd2 $2 {[%emt 0:00:10] White does not recover from this.} ({Only move:} 34. Qd2 $15) 34... d4 $19 {[%emt 0:02:17]} 35. cxd4 {[%emt 0:00:04]} exd4 {[%emt 0:00:03]} 36. Rb3 {[%emt 0:00:08] [#]} (36. Ra3 Be2 37. Kg2) 36... Bd1 $1 {[%emt 0:00:54][%mdl 512]} 37. Qxd1 {[%emt 0:02:33]} (37. Kg1 Bxb3) 37... Qxf2+ {[%emt 0:00:06] Black mates.} 38. Kh3 {[%emt 0:01:20]} e3 {[%emt 0:00:05]} 39. Rb1 {[%emt 0:00:37]} exd2 {[%emt 0:02:16]} 40. b5 {[%emt 0:00:01]} Rf3 {[%emt 0:00:46][%csl Gf2][%cal Rf3g3]} 41. Qg1 {[%emt 0:00:06] [#]} Rxg3+ $3 {[%emt 0:00:23][%mdl 512]} 42. Qxg3 {[%emt 0:00:05]} Qf5+ {[%emt 0:00:03] Weighted Error Value: White=0.44/Black=0.07 (flawless) .  Mistake:       	White=5     	Black=1      Inaccurate:     	White=6     	Black=2      OK:         	White=11    	Black=9      Best:        	White=3     	Black=1      Strong:       	White=1     	Black=2      Brilliant:      	---       	Black=1} 0-1

[Event "10th Iberoamericano-ch 2024"]
[Site "Linares"]
[Date "2024.09.29"]
[Round "7.3"]
[White "Vallejo Pons, Francisco"]
[Black "Fernandez Guillen, Ernesto J."]
[Result "0-1"]
[ECO "C45"]
[WhiteElo "2657"]
[BlackElo "2463"]
[Annotator "RC"]
[PlyCount "116"]
[EventDate "2024.09.25"]
[EventType "swiss"]
[EventCountry "ESP"]
[SourceTitle "playchess.com"]
[Source "ChessBase"]
[SourceQuality "1"]
[TimeControl "5400+30"]

1. e4 {[%emt 0:00:04]} e5 {[%emt 0:01:43]} 2. Nf3 {[%emt 0:00:11]} Nc6 {[%emt 0:00:07]} 3. d4 {[%emt 0:00:08]} exd4 {[%emt 0:00:13]} 4. Nxd4 {[%emt 0:00:03]} Nf6 {[%emt 0:06:24]} 5. Nxc6 {[%emt 0:00:18]} bxc6 {[%emt 0:00:08]} 6. e5 {[%emt 0:00:07]} Qe7 {[%emt 0:00:08]} 7. Qe2 {[%emt 0:00:07]} Nd5 {[%emt 0:00:05]} 8. c4 {[%emt 0:00:08]} Qb4+ {[%emt 0:01:11]} 9. Nd2 {[%emt 0:00:36]} Nf4 {[%emt 0:00:09]} 10. Qe3 {[%emt 0:00:19]} Ne6 {[%emt 0:00:15]} 11. Bd3 {[%emt 0:00:23]} Qc5 {[%emt 0:08:51]} 12. Qg3 {[%emt 0:25:57]} h5 {[%emt 0:11:16]} 13. Nb3 {[%emt 0:17:22]} h4 {[%emt 0:06:16]} 14. Nxc5 {[%emt 0:00:32]} hxg3 {[%emt 0:00:06]} 15. Nxe6 {[%emt 0:00:11]} gxf2+ {[%emt 0:01:12]} 16. Kxf2 {[%emt 0:03:07]} dxe6 {[%emt 0:01:28]} 17. Be4 {[%emt 0:18:51]} Bb7 {[%emt 0:09:50]} 18. Bf3 {[%emt 0:04:33]} Bc5+ {[%emt 0:06:34]} 19. Be3 {[%emt 0:00:29]} Bxe3+ {[%emt 0:00:02]} 20. Kxe3 {[%emt 0:00:03]} Rh4 {[%emt 0:01:04]} 21. c5 {[%emt 0:03:10]} Ke7 {[%emt 0:11:30]} 22. Rad1 {[%emt 0:05:53]} Rah8 {[%emt 0:02:03]} 23. h3 {[%emt 0:02:12]} f6 {[%emt 0:00:46]} 24. Rd3 {[%emt 0:01:29]} Rc4 {[%emt 0:02:13]} 25. Rhd1 {[%emt 0:01:46]} Bc8 {[%emt 0:00:18]} 26. Rc3 {[%emt 0:03:26]} Rhh4 {[%emt 0:06:05]} 27. Rdc1 {[%emt 0:00:01]} Rb4 {[%emt 0:02:04]} 28. b3 {[%emt 0:00:25]} fxe5 {[%emt 0:04:00]} 29. Rc4 {[%emt 0:04:03]} Ba6 {[%emt 0:04:36]} 30. Rxb4 {[%emt 0:01:25]} Rxb4 {[%emt 0:00:07]} 31. Bxc6 {[%emt 0:00:12]} Rd4 {[%emt 0:04:40]} 32. Be4 {[%emt 0:00:31]} Bb5 {[%emt 0:00:10]} 33. h4 {[%emt 0:00:56]} a5 {[%emt 0:01:56]} 34. a3 {[%emt 0:00:12]} a4 35. bxa4 {[%emt 0:04:36]} Rxa4 {[%emt 0:01:36]} 36. Rc3 {[%emt 0:00:13]} Kd7 {[%emt 0:01:19]} 37. g4 {[%emt 0:01:36]} Bc6 {[%emt 0:00:48]} 38. Bxc6+ {[%emt 0:01:10]} Kxc6 {[%emt 0:00:02]} 39. Kf3 {[%emt 0:00:06]} Kd5 {[%emt 0:04:27]} 40. h5 {[%emt 0:00:10]} e4+ {[%emt 0:00:49]} 41. Kg3 {[%emt 0:00:28]} Kd4 {[%emt 0:02:52]} 42. Rb3 {[%emt 0:00:20]} Ra5 {[%emt 0:00:59]} 43. Rb4+ {[%emt 0:03:22]} Kd3 {[%emt 0:00:53]} 44. Rb3+ {[%emt 0:00:22]} Kd4 {[%emt 0:00:16]} 45. Kf4 {[%emt 0:00:38]} e5+ {[%emt 0:00:05]} 46. Kf5 {[%emt 0:00:07]} e3 {[%emt 0:00:14]} 47. Kg6 {[%emt 0:00:58]} e2 {[%emt 0:00:06]} 48. Rb1 {[%emt 0:00:06]} Rxa3 {[%emt 0:00:06]} 49. Re1 {[%emt 0:00:59]} Ke3 {[%emt 0:01:22]} 50. Kxg7 {[%emt 0:00:15]} Kf2 {[%emt 0:00:04]} 51. Rxe2+ {[%emt 0:00:25]} Kxe2 {[%emt 0:00:06]} 52. g5 {[%emt 0:00:02]} e4 {[%emt 0:01:25]} 53. h6 {[%emt 0:00:05]} e3 {[%emt 0:00:09]} 54. h7 {[%emt 0:00:40]} Ra8 {[%emt 0:00:05]} 55. g6 {[%emt 0:00:48]} Kd3 {[%emt 0:00:07]} 56. Kf6 {[%emt 0:01:09]} e2 {[%emt 0:00:06]} 57. g7 {[%emt 0:00:03]} e1=Q {[%emt 0:00:05]} 58. g8=Q {[%emt 0:00:06]} Qf2+ {[%emt 0:00:55]} 0-1

[Event "10th Iberoamericano-ch 2024"]
[Site "Linares"]
[Date "2024.09.29"]
[Round "7.4"]
[White "Ladron De Guevara Pinto, Paolo"]
[Black "Pichot, Alan"]
[Result "0-1"]
[ECO "E49"]
[WhiteElo "2371"]
[BlackElo "2628"]
[Annotator "TA"]
[PlyCount "120"]
[EventDate "2024.09.25"]
[EventType "swiss"]
[EventCountry "ESP"]
[SourceTitle "playchess.com"]
[Source "ChessBase"]
[SourceQuality "1"]
[TimeControl "5400+30"]

{[%evp 46,120,64,57,64,64,63,57,66,71,64,66,71,57,57,57,57,50,55,52,76,68,168,0,0,0,0,-14,-14,-14,-14,-27,-25,-64,-65,-85,-95,-104,0,-8,-8,-60,-72,-83,-85,-56,-73,-90,-48,-63,-65,-87,-87,-116,0,0,0,-277,-276,-495,0,0,0,-505,-499,-487,-476,-500,-497,-501,-501,-933,-873,-1077,-1000,-1193,-1066]} 1. d4 {[%emt 0:00:04]} Nf6 {[%emt 0:01:12]} 2. c4 {[%emt 0:00:14]} e6 {[%emt 0:00:07]} 3. Nc3 {[%emt 0:00:17]} Bb4 {[%emt 0:00:19]} 4. e3 {[%emt 0:00:36]} O-O {[%emt 0:00:20]} 5. Bd3 {[%emt 0:00:37]} d5 {[%emt 0:00:28]} 6. a3 {[%emt 0:00:23]} Bxc3+ {[%emt 0:00:13]} 7. bxc3 {[%emt 0:00:06]} c6 {[%emt 0:04:57]} 8. Ne2 {[%emt 0:07:12]} Qc7 {[%emt 0:04:02]} 9. a4 {[%emt 0:16:51]} e5 {[%emt 0:11:15]} 10. cxd5 {[%emt 0:06:07]} cxd5 {[%emt 0:01:17]} 11. dxe5 {[%emt 0:00:49]} Qxe5 {[%emt 0:00:13]} 12. Ba3 {[%emt 0:01:00]} Re8 {[%emt 0:01:14]} 13. Bc5 {[%emt 0:00:11]} Nc6 {[%emt 0:05:07]} 14. Bd4 {[%emt 0:05:06]} Qg5 {[%emt 0:05:40]} 15. O-O {[%emt 0:16:07]} Nxd4 {[%emt 0:07:22]} 16. cxd4 {[%emt 0:05:24]} h5 {[%emt 0:00:33]} 17. Nf4 {[%emt 0:03:38]} h4 {[%emt 0:07:11]} 18. h3 {[%emt 0:00:46]} Bd7 {[%emt 0:01:03]} 19. Rb1 {[%emt 0:01:43]} Bc6 {[%emt 0:00:45]} 20. Bb5 {[%emt 0:00:05]} Re7 {[%emt 0:06:36]} 21. Bxc6 {[%emt 0:03:52]} bxc6 {[%emt 0:00:17]} 22. Rc1 {[%emt 0:00:36]} Rc8 {[%emt 0:00:58]} 23. Nd3 {[%emt 0:05:53]} Qf5 {[%emt 0:01:29]} 24. Nc5 {[%emt 0:01:31]} Ne8 {[%emt 0:05:10]} 25. a5 {[%emt 0:08:54]} Nd6 {[%emt 0:03:01]} 26. Rb1 {[%emt 0:03:40]} g5 {[%emt 0:01:25]} 27. a6 {[%emt 0:03:09]} Qg6 {[%emt 0:02:06]} 28. Rb3 {[%emt 0:00:27]} Kh7 {[%emt 0:07:20]} 29. Kh1 {[%emt 0:01:49]} Rg8 {[%emt 0:04:34]} 30. Nd3 {[%emt 0:03:52]} f6 {[%emt 0:01:29]} 31. Qe2 {[%emt 0:01:16]} Rgg7 {[%emt 0:08:04]} 32. Rc1 {[%emt 0:00:25]} Nc4 {[%emt 0:00:06]} 33. Rcb1 {[%emt 0:00:30]} (33. Rb8 Re8 34. Rb7 Kh6 $16) 33... g4 {[%emt 0:03:53]} ({Black should try} 33... Re8 $14) 34. Qxg4 $2 {[%emt 0:01:20]} ({White must play} 34. hxg4 $1 $18 f5 35. Nf4 Qxg4 36. Rb8 Qxe2 (36... Qxf4 $2 37. Qh5+ Qh6 38. Rh8+ Kxh8 39. Qxh6+ Kg8 40. Rb8+ Kf7 41. Rb7 $18) 37. Nxe2) 34... Qxg4 $11 {[%emt 0:00:35]} 35. hxg4 {[%emt 0:00:04]} Nd2 {[%emt 0:00:05]} 36. Kh2 {[%emt 0:00:58]} Nxb1 {[%emt 0:00:55]} 37. Rxb1 {[%emt 0:00:04]} Rxg4 {[%emt 0:00:05]} 38. Rc1 {[%emt 0:00:25]} Re6 {[%emt 0:02:35]} 39. Nc5 {[%emt 0:00:39]} Re8 {[%emt 0:02:21]} 40. Nd7 {[%emt 0:00:50]} Rg6 $1 {[%emt 0:00:41]} 41. Rxc6 {[%emt 0:00:41] [#]} f5 {[%emt 0:00:27]} (41... Kg7 42. Rc7 Re7 43. Kh3 $16 (43. Rxa7 f5 $11)) ({Black should play} 41... Rd8 $1 $17 {[%cal Rd8d7]} 42. Rd6 (42. Nxf6+ $2 Kh8 $19) 42... Kg7 43. Rxd5 f5) 42. Rc7 $11 {[%emt 0:00:23]} Kh6 {[%emt 0:00:12]} 43. Ne5 {[%emt 0:00:55]} (43. Rxa7 $11 Reg8 44. Kh3) 43... Rxa6 $15 {[%emt 0:00:08]} 44. Rf7 {[%emt 0:01:08]} Ra1 {[%emt 0:01:04]} 45. Rxf5 {[%emt 0:00:16]} a5 {[%emt 0:00:09]} 46. Ng4+ {[%emt 0:01:15]} Kg6 {[%emt 0:00:32]} 47. Rxd5 {[%emt 0:00:04]} Ra8 $1 {[%emt 0:00:30]} 48. Rd6+ {[%emt 0:00:11] [#]} Kf7 $1 {[%emt 0:01:23]} 49. Ne5+ {[%emt 0:00:57]} Ke7 {[%emt 0:01:43]} ({Better is} 49... Kf8 $17 {aiming for ...a4.} 50. Rh6 Kg7 51. Rg6+ (51. Rxh4 $2 Rh8 $19) 51... Kh7) 50. Rh6 $11 {[%emt 0:00:32]} a4 {[%emt 0:00:17]} 51. d5 $2 {[%emt 0:00:17][%mdl 8192]} (51. Rxh4 $2 a3 52. Nc6+ Kf6 $19) (51. e4 $11) 51... Rd1 $19 {[%emt 0:00:14]} 52. Re6+ $2 {[%emt 0:01:20]} (52. d6+ Rxd6 53. Nc6+ Kd7 54. Ne5+ Kc7 55. Rh7+ Kc8 56. Nc4) 52... Kd8 $2 {[%emt 0:01:35]} (52... Kf8 $19 {[%cal Oa4a3] ...a3! would now be deadly.} 53. Nc4 a3 (53... Rxd5 54. Nb6 $11) 54. Nxa3 Rxa3 55. Rf6+ Ke7) 53. Rh6 $11 {[%emt 0:00:37]} Ke7 $2 {[%emt 0:00:42][%mdl 8192]} (53... Rxd5 $2 54. Rh8+ Ke7 55. Nc6+ (55. Rxa8 Rxe5 56. Rxa4 Kf6 $18) 55... Kd7 56. Rxa8 $18) (53... Kc8 $11) 54. Re6+ $1 $19 {[%emt 0:00:13]} Kf8 {[%emt 0:00:52]} 55. Nd7+ {[%emt 0:00:23]} Kf7 {[%emt 0:00:25]} 56. Ne5+ {[%emt 0:00:54]} Kg7 {[%emt 0:00:01]} 57. Re7+ {[%emt 0:00:24]} Kf8 {[%emt 0:00:52]} 58. Rh7 {[%emt 0:00:57]} (58. d6 $142 Rxd6 59. Rh7) 58... Kg8 $19 {[%emt 0:00:07]} (58... Rxd5 $2 {is the wrong capture.} 59. Rh8+ Ke7 60. Nc6+ (60. Rxa8 Rxe5 61. Rxa4 Kf7 $18) 60... Kd7 61. Rxa8 $18) 59. Rd7 {[%emt 0:00:26]} a3 {[%emt 0:00:27]} 60. Ng4 {[%emt 0:00:06]} Ra6 {[%emt 0:00:08]} ({Weaker is} 60... a2 61. Nf6+ Kf8 62. Nh7+ Ke8 63. Nf6+ Kf8 64. Nh7+ Ke8 65. Nf6+ Kf8 $11) 0-1

[Event "10th Iberoamericano-ch 2024"]
[Site "Linares"]
[Date "2024.09.29"]
[Round "7.5"]
[White "Iturrizaga Bonelli, Eduardo"]
[Black "Oro, Faustino"]
[Result "1-0"]
[ECO "A08"]
[WhiteElo "2577"]
[BlackElo "2434"]
[Annotator "TA"]
[PlyCount "71"]
[EventDate "2024.09.25"]
[EventType "swiss"]
[EventCountry "ESP"]
[SourceTitle "playchess.com"]
[Source "ChessBase"]
[SourceQuality "1"]
[TimeControl "5400+30"]

{[%evp 14,71,10,10,11,0,0,0,9,4,28,25,21,14,43,19,36,35,40,0,142,131,138,133,173,155,147,129,130,136,144,139,433,433,424,418,425,312,304,298,312,314,320,320,320,247,297,287,660,646,1810,1727,2151,2005,5306,5306,5306,5265,1923,1883]} 1. Nf3 {[%emt 0:00:09]} d5 {[%emt 0:00:09]} 2. g3 {[%emt 0:00:30]} c5 {[%emt 0:00:13]} 3. Bg2 {[%emt 0:00:41]} e6 {[%emt 0:00:13]} 4. O-O {[%emt 0:01:45]} Nf6 {[%emt 0:00:16]} 5. c4 {[%emt 0:08:59]} d4 {[%emt 0:00:19]} 6. e3 {[%emt 0:00:08]} Nc6 {[%emt 0:00:14]} 7. exd4 {[%emt 0:00:05]} cxd4 {[%emt 0:00:07]} 8. d3 {[%emt 0:00:03]} Bd6 {[%emt 0:00:44]} 9. a3 {[%emt 0:00:26]} a5 {[%emt 0:00:56][%cal Ba7a5,Ba5a4][%mdl 32]} 10. Bg5 {[%emt 0:00:06]} h6 {[%emt 0:01:19] The position is equal.} 11. Bxf6 {[%emt 0:00:05]} gxf6 {[%emt 0:00:40]} 12. Nbd2 {[%emt 0:00:13]} Kf8 {[%emt 0:04:52]} 13. Rc1 {[%emt 0:04:22]} a4 {[%emt 0:08:08]} 14. Re1 {[%emt 0:03:29]} Ra5 {[%emt 0:04:02]} 15. Rc2 {[%emt 0:11:53]} f5 {[%emt 0:07:47]} 16. Qc1 {[%emt 0:02:24]} Qe7 {[%emt 0:08:01]} (16... Be7 $11 {remains equal.}) 17. b4 $1 $16 {[%emt 0:05:11]} axb3 {[%emt 0:01:32]} 18. Nxb3 {[%emt 0:00:06]} Rxa3 {[%emt 0:08:50]} 19. Nfxd4 {[%emt 0:06:51] Hoping for c5.} Bb4 {[%emt 0:16:49]} 20. Nxc6 {[%emt 0:05:05]} (20. Nxf5 $2 Qf6 21. Nh4 (21. Bxc6 $2 exf5 22. Bd5 Rxb3 $19) 21... Rxb3 $19) 20... bxc6 {[%emt 0:00:31]} 21. Qb2 {[%emt 0:00:03]} Kg8 {[%emt 0:03:10]} 22. Ra1 {[%emt 0:01:57] White is more active.} Bd7 $2 {[%emt 0:03:18][%mdl 8192] Loses the game.} (22... Rxa1+ $16 {is a better defense.} 23. Qxa1 Qd8) 23. c5 $1 $18 {[%emt 0:02:57]} Rxa1+ {[%emt 0:00:50]} 24. Qxa1 {[%emt 0:00:07]} Kh7 {[%emt 0:04:02][%cal Bg8h7,Bh7g6,Bg6f6,Bf6g7][%mdl 32]} 25. Rc4 {[%emt 0:02:53]} Rb8 {[%emt 0:01:06]} 26. Qa7 $1 {[%emt 0:02:05]} Qe8 {[%emt 0:03:34] [#]} 27. Rd4 $1 {[%emt 0:00:47][%cal Bc4d4,Bd4d7,Bd7f7][%mdl 32]} Bc3 {[%emt 0:01:00]} 28. Rxd7 {[%emt 0:00:16]} Rxb3 {[%emt 0:00:33]} 29. Rxf7+ {[%emt 0:01:44]} Kg6 {[%emt 0:00:21] [#]} 30. Bf3 $1 {[%emt 0:13:53][%cal Oh2h4] aiming for h4!} Rb1+ $2 {[%emt 0:06:52]} (30... Qxf7 31. Bh5+ Kf6 32. Qxf7+ Ke5 33. Qc7+ Kf6 34. f4 (34. Qxc6 Bd4 $18) 34... Bd4+ 35. Kg2 Rb2+ 36. Kh3) (30... Be5 31. Re7 Bb8 32. Rxe8 Bxa7 33. Rxe6+ (33. Bxc6 Bxc5 34. Rxe6+ Kg7 $16) 33... Kf7) 31. Kg2 {[%emt 0:00:06][%cal Oh2h4] Black must now prevent h4! White is clearly winning.} Ra1 {[%emt 0:00:04]} 32. Qc7 {[%emt 0:00:49][%cal Oh2h4] White threatens h4! and mate.} ({Not} 32. Re7 Rxa7 33. Rxe8 Kf7 34. Bh5+ (34. Bxc6 Bd4 $11) 34... Kf6 $14) 32... Ba5 {[%emt 0:03:05]} 33. Qb7 {[%emt 0:01:00] Threatening mate with Rg7+.} (33. Qxc6 $2 {loses.} Qxc6 (33... Qxf7 $2 34. d4 $19) 34. Bxc6 Kxf7 $19) 33... Rb1 {[%emt 0:01:31]} 34. Rg7+ {[%emt 0:00:11]} Kf6 {[%emt 0:00:03]} 35. Qxb1 {[%emt 0:00:05] Qb2+ would kill now.} Kxg7 {[%emt 0:00:03]} 36. Qa1+ {[%emt 0:00:04] Weighted Error Value: White=0.14 (very precise) /Black=0.60.  Loses game:     	---       	Black=1      Mistake:       	---       	Black=2      Inaccurate:     	White=1     	Black=3      OK:         	White=7     	Black=6      Best:        	White=1     	Black=3      Strong:       	White=5     	---} 1-0